[Event "*** SCC Grand Prix: Titled Tuesday Blitz"]
[Site "Chess.com"]
[Date "2020.10.06"]
[Round "6"]
[White "Gerodot71"]
[Black "Bastiandash"]
[Result "1-0"]
[WhiteElo "2469"]
[BlackElo "2266"]
[TimeControl "180+1"]
[EndTime "11:09:15 PDT"]
[Termination "Gerodot71 won by checkmate"]

1. d4 {[%clk 0:03:00.9]} 1... Nf6 {[%clk 0:03:00.1]} 2. c4 {[%clk 0:03:00.3]}
2... e6 {[%clk 0:02:59.4]} 3. Nf3 {[%clk 0:02:59.7]} 3... d5 {[%clk 0:02:59]} 4.
g3 {[%clk 0:02:59.6]} 4... Bb4+ {[%clk 0:02:59.4]} 5. Bd2 {[%clk 0:02:59.2]}
5... a5 {[%clk 0:02:59.2]} 6. Bg2 {[%clk 0:02:58.6]} 6... O-O {[%clk 0:02:58.4]}
7. O-O {[%clk 0:02:58.3]} 7... dxc4 {[%clk 0:02:58.6]} 8. Qc2 {[%clk 0:02:56]}
8... b5 {[%clk 0:02:56.1]} 9. a4 {[%clk 0:02:29.4]} 9... c6 {[%clk 0:02:36.9]}
10. Ne5 {[%clk 0:02:21.9]} 10... Bxd2 {[%clk 0:02:33.6]} 11. Nxd2 {[%clk
0:02:20.9]} 11... Ra6 {[%clk 0:02:29.7]} 12. e3 {[%clk 0:02:16]} 12... Nfd7
{[%clk 0:02:21.9]} 13. Ndf3 {[%clk 0:02:11]} 13... Ra7 {[%clk 0:02:03.8]} 14.
Rfc1 {[%clk 0:01:58.8]} 14... Ba6 {[%clk 0:02:02.6]} 15. b3 {[%clk 0:01:57.4]}
15... cxb3 {[%clk 0:01:57.2]} 16. Qxb3 {[%clk 0:01:58.3]} 16... bxa4 {[%clk
0:01:51.6]} 17. Qxa4 {[%clk 0:01:52.8]} 17... Bb5 {[%clk 0:01:50.9]} 18. Qa3
{[%clk 0:01:45.8]} 18... a4 {[%clk 0:01:25.9]} 19. Rab1 {[%clk 0:01:29.9]} 19...
Rc7 {[%clk 0:01:07.8]} 20. Qc3 {[%clk 0:01:23.2]} 20... Ra7 {[%clk 0:00:56.3]}
21. Qc2 {[%clk 0:01:19]} 21... Nb6 {[%clk 0:00:47.6]} 22. h4 {[%clk 0:01:16.8]}
22... h6 {[%clk 0:00:46.4]} 23. Nd2 {[%clk 0:01:12.6]} 23... Nd5 {[%clk
0:00:41.6]} 24. Ne4 {[%clk 0:01:07.1]} 24... Qe7 {[%clk 0:00:32.3]} 25. Nc5
{[%clk 0:01:06.2]} 25... Rd8 {[%clk 0:00:25]} 26. Kh2 {[%clk 0:01:03.3]} 26...
Qf6 {[%clk 0:00:21]} 27. Be4 {[%clk 0:00:56]} 27... a3 {[%clk 0:00:18.2]} 28.
Ra1 {[%clk 0:00:51.8]} 28... Na6 {[%clk 0:00:13.7]} 29. Kg1 {[%clk 0:00:42.4]}
29... Nxc5 {[%clk 0:00:10.4]} 30. Qxc5 {[%clk 0:00:43.3]} 30... Ra6 {[%clk
0:00:08.3]} 31. Rxa3 {[%clk 0:00:40.9]} 31... Rxa3 {[%clk 0:00:08.1]} 32. Qxa3
{[%clk 0:00:41.8]} 32... g6 {[%clk 0:00:04.4]} 33. Nxc6 {[%clk 0:00:35.1]} 33...
Bxc6 {[%clk 0:00:05.3]} 34. Rxc6 {[%clk 0:00:35.4]} 34... Ne7 {[%clk 0:00:05.9]}
35. Rc7 {[%clk 0:00:34.7]} 35... Nf5 {[%clk 0:00:06.2]} 36. Kg2 {[%clk
0:00:28.6]} 36... Rb8 {[%clk 0:00:05.4]} 37. Bf3 {[%clk 0:00:24.3]} 37... h5
{[%clk 0:00:04.9]} 38. d5 {[%clk 0:00:19.3]} 38... exd5 {[%clk 0:00:03.7]} 39.
Bxd5 {[%clk 0:00:20.2]} 39... Rf8 {[%clk 0:00:03.4]} 40. Qb3 {[%clk 0:00:18.9]}
40... Kg7 {[%clk 0:00:03.2]} 41. Qc4 {[%clk 0:00:16]} 41... Nd6 {[%clk
0:00:03.6]} 42. Qd3 {[%clk 0:00:14.9]} 42... Qe5 {[%clk 0:00:03.8]} 43. Rc6
{[%clk 0:00:14.9]} 43... Nf5 {[%clk 0:00:03.7]} 44. Bf3 {[%clk 0:00:15]} 44...
Re8 {[%clk 0:00:03]} 45. Ra6 {[%clk 0:00:13.2]} 45... Re7 {[%clk 0:00:03.2]} 46.
Ra2 {[%clk 0:00:12.3]} 46... Re6 {[%clk 0:00:03.4]} 47. Rd2 {[%clk 0:00:12.1]}
47... Rd6 {[%clk 0:00:02.9]} 48. Qc2 {[%clk 0:00:12.4]} 48... Rxd2 {[%clk
0:00:03.2]} 49. Qxd2 {[%clk 0:00:13.3]} 49... Kh7 {[%clk 0:00:03.1]} 50. Qa2
{[%clk 0:00:12.9]} 50... Kg7 {[%clk 0:00:03.1]} 51. Qb3 {[%clk 0:00:12.4]} 51...
Nd6 {[%clk 0:00:03.4]} 52. Bd5 {[%clk 0:00:12]} 52... Kg8 {[%clk 0:00:03.6]} 53.
f4 {[%clk 0:00:09.5]} 53... Qe7 {[%clk 0:00:03.3]} 54. e4 {[%clk 0:00:09.1]}
54... Kf8 {[%clk 0:00:03.2]} 55. Qb2 {[%clk 0:00:08.3]} 55... Kg8 {[%clk
0:00:01.1]} 56. Kf3 {[%clk 0:00:08.9]} 56... Kf8 {[%clk 0:00:01.7]} 57. Qh8#
{[%clk 0:00:08.5]} 1-0

[Event "*** SCC Grand Prix: Titled Tuesday Blitz"]
[Site "Chess.com"]
[Date "2020.10.06"]
[Round "6"]
[White "ChessSkool"]
[Black "BilodeauA"]
[Result "1-0"]
[WhiteElo "2704"]
[BlackElo "2911"]
[TimeControl "180+1"]
[EndTime "11:09:21 PDT"]
[Termination "ChessSkool won on time"]

1. c4 {[%clk 0:03:00.9]} 1... e5 {[%clk 0:03:00]} 2. g3 {[%clk 0:03:00.2]} 2...
Nc6 {[%clk 0:03:00.3]} 3. Bg2 {[%clk 0:03:00]} 3... g6 {[%clk 0:03:00.6]} 4. Nc3
{[%clk 0:02:59.7]} 4... d6 {[%clk 0:03:00.9]} 5. e3 {[%clk 0:02:57.5]} 5... Bg7
{[%clk 0:02:57.8]} 6. Nge2 {[%clk 0:02:56.3]} 6... f5 {[%clk 0:02:58.5]} 7. O-O
{[%clk 0:02:54.8]} 7... Nf6 {[%clk 0:02:59.1]} 8. Rb1 {[%clk 0:02:55.4]} 8...
O-O {[%clk 0:02:58.7]} 9. b4 {[%clk 0:02:55.8]} 9... a6 {[%clk 0:02:59.3]} 10.
a4 {[%clk 0:02:54.6]} 10... h6 {[%clk 0:02:59.6]} 11. d3 {[%clk 0:02:54.8]}
11... g5 {[%clk 0:02:54.8]} 12. b5 {[%clk 0:02:47.4]} 12... axb5 {[%clk
0:02:55.7]} 13. axb5 {[%clk 0:02:48.3]} 13... Ne7 {[%clk 0:02:56]} 14. f4 {[%clk
0:02:49.1]} 14... Ng6 {[%clk 0:02:55.3]} 15. Qb3 {[%clk 0:02:44.7]} 15... Kh8
{[%clk 0:02:54.2]} 16. Ba3 {[%clk 0:02:39.1]} 16... Ng4 {[%clk 0:02:50.5]} 17.
Bc1 {[%clk 0:02:33.4]} 17... Rb8 {[%clk 0:02:32.2]} 18. Nd5 {[%clk 0:02:05.8]}
18... Be6 {[%clk 0:02:29.7]} 19. h3 {[%clk 0:02:05.4]} 19... Nf6 {[%clk
0:02:21.1]} 20. Nxf6 {[%clk 0:01:58.1]} 20... Qxf6 {[%clk 0:02:16]} 21. Bb2
{[%clk 0:01:49.3]} 21... c5 {[%clk 0:02:15.6]} 22. bxc6 {[%clk 0:01:38.8]} 22...
bxc6 {[%clk 0:02:15.4]} 23. Qa4 {[%clk 0:01:39.2]} 23... Rxb2 {[%clk 0:02:06.2]}
24. Rxb2 {[%clk 0:01:38.6]} 24... exf4 {[%clk 0:02:06.8]} 25. Rb6 {[%clk
0:01:30.5]} 25... Qe5 {[%clk 0:02:03.4]} 26. Rf3 {[%clk 0:01:15.5]} 26... g4
{[%clk 0:01:39.9]} 27. gxf4 {[%clk 0:01:11.5]} 27... Qc5 {[%clk 0:01:37.5]} 28.
Rxc6 {[%clk 0:00:44.7]} 28... gxf3 {[%clk 0:01:37.5]} 29. Rxc5 {[%clk
0:00:44.2]} 29... fxe2 {[%clk 0:01:37.9]} 30. Kf2 {[%clk 0:00:44.2]} 30... dxc5
{[%clk 0:01:36.3]} 31. Qc6 {[%clk 0:00:41.2]} 31... Bf7 {[%clk 0:01:27.8]} 32.
Kxe2 {[%clk 0:00:41.2]} 32... Rb8 {[%clk 0:01:26.6]} 33. Bd5 {[%clk 0:00:35.4]}
33... Be8 {[%clk 0:01:25.5]} 34. Qxc5 {[%clk 0:00:28.8]} 34... Rb2+ {[%clk
0:00:53]} 35. Kd1 {[%clk 0:00:28.6]} 35... Ba4+ {[%clk 0:00:51.3]} 36. Kc1
{[%clk 0:00:29.1]} 36... Rc2+ {[%clk 0:00:49.5]} 37. Kb1 {[%clk 0:00:29.6]}
37... Rb2+ {[%clk 0:00:49.6]} 38. Kc1 {[%clk 0:00:29.8]} 38... Rf2 {[%clk
0:00:35.4]} 39. Qc8+ {[%clk 0:00:19.4]} 39... Nf8 {[%clk 0:00:35.5]} 40. Qxf5
{[%clk 0:00:15.8]} 40... Bb2+ {[%clk 0:00:22.5]} 41. Kb1 {[%clk 0:00:16]} 41...
Bc2+ {[%clk 0:00:23.2]} 42. Ka2 {[%clk 0:00:14.8]} 42... Bg7 {[%clk 0:00:23.8]}
43. Qf7 {[%clk 0:00:12]} 43... Bxd3+ {[%clk 0:00:24.1]} 44. Kb3 {[%clk
0:00:12.5]} 44... Bh7 {[%clk 0:00:24.9]} 45. c5 {[%clk 0:00:12]} 45... Rb2+
{[%clk 0:00:25.2]} 46. Ka3 {[%clk 0:00:10.2]} 46... Rb8 {[%clk 0:00:20.7]} 47.
e4 {[%clk 0:00:08.9]} 47... Ng6 {[%clk 0:00:19.9]} 48. c6 {[%clk 0:00:09.4]}
48... Rf8 {[%clk 0:00:17.6]} 49. Qd7 {[%clk 0:00:07.1]} 49... Ra8+ {[%clk
0:00:09.3]} 50. Kb3 {[%clk 0:00:07.2]} 50... Rb8+ {[%clk 0:00:09.7]} 51. Ka4
{[%clk 0:00:05.1]} 51... Nf8 {[%clk 0:00:05.8]} 52. Qd6 {[%clk 0:00:03.6]} 52...
Ra8+ {[%clk 0:00:05.7]} 53. Kb5 {[%clk 0:00:04.2]} 53... Rb8+ {[%clk 0:00:06.2]}
54. Ka6 {[%clk 0:00:04.6]} 54... Ra8+ {[%clk 0:00:05.8]} 55. Kb7 {[%clk
0:00:04.9]} 55... Ra1 {[%clk 0:00:05.4]} 56. c7 {[%clk 0:00:05.4]} 56... Rb1+
{[%clk 0:00:06.1]} 57. Ka8 {[%clk 0:00:04.8]} 57... Ra1+ {[%clk 0:00:06.6]} 58.
Kb8 {[%clk 0:00:05.4]} 58... Rb1+ {[%clk 0:00:07]} 59. Kc8 {[%clk 0:00:05.3]}
59... Bg6 {[%clk 0:00:03.9]} 60. Kd8 {[%clk 0:00:05.1]} 60... Ra1 {[%clk
0:00:02]} 61. c8=Q {[%clk 0:00:05.3]} 61... Ra7 {[%clk 0:00:01.6]} 62. Qcc7
{[%clk 0:00:04.8]} 1-0

[Event "*** SCC Grand Prix: Titled Tuesday Blitz"]
[Site "Chess.com"]
[Date "2020.10.06"]
[Round "6"]
[White "Larina_Marija"]
[Black "Kira170"]
[Result "1-0"]
[WhiteElo "2250"]
[BlackElo "2776"]
[TimeControl "180+1"]
[EndTime "11:09:22 PDT"]
[Termination "Larina_Marija won by resignation"]

1. e4 {[%clk 0:03:00.5]} 1... e6 {[%clk 0:03:00.2]} 2. d4 {[%clk 0:03:00.2]}
2... d5 {[%clk 0:03:00.7]} 3. Nc3 {[%clk 0:03:00.6]} 3... Nf6 {[%clk 0:03:00.8]}
4. Bg5 {[%clk 0:03:00.1]} 4... Bb4 {[%clk 0:03:01]} 5. e5 {[%clk 0:02:59.8]}
5... h6 {[%clk 0:03:01.2]} 6. Be3 {[%clk 0:03:00.2]} 6... Ne4 {[%clk 0:03:00.6]}
7. Qg4 {[%clk 0:02:58.5]} 7... Kf8 {[%clk 0:03:00.5]} 8. a3 {[%clk 0:02:54.6]}
8... Ba5 {[%clk 0:03:00.4]} 9. Ne2 {[%clk 0:02:35.6]} 9... c5 {[%clk 0:02:54.9]}
10. f3 {[%clk 0:01:57.4]} 10... Nxc3 {[%clk 0:02:53.6]} 11. bxc3 {[%clk
0:01:55]} 11... cxd4 {[%clk 0:02:49.2]} 12. Bxd4 {[%clk 0:01:53.2]} 12... Nc6
{[%clk 0:02:49.1]} 13. Kf2 {[%clk 0:01:44.1]} 13... Bd7 {[%clk 0:02:46.5]} 14.
Nf4 {[%clk 0:01:36.8]} 14... Nxd4 {[%clk 0:02:39.6]} 15. cxd4 {[%clk 0:01:35.7]}
15... Qb6 {[%clk 0:02:39.3]} 16. Nh5 {[%clk 0:01:32.7]} 16... Rg8 {[%clk
0:02:30.3]} 17. Bd3 {[%clk 0:01:31.4]} 17... Bc3 {[%clk 0:02:29.9]} 18. Rab1
{[%clk 0:01:23.7]} 18... Qxd4+ {[%clk 0:02:28.7]} 19. Qxd4 {[%clk 0:01:17.8]}
19... Bxd4+ {[%clk 0:02:29.6]} 20. Ke2 {[%clk 0:01:15.6]} 20... b6 {[%clk
0:02:29.4]} 21. f4 {[%clk 0:01:13.5]} 21... Ke7 {[%clk 0:02:27.3]} 22. g4 {[%clk
0:01:04.6]} 22... Rac8 {[%clk 0:02:17.7]} 23. Rhd1 {[%clk 0:01:00.1]} 23... Bc5
{[%clk 0:02:13.3]} 24. f5 {[%clk 0:00:54.5]} 24... f6 {[%clk 0:01:50.1]} 25.
exf6+ {[%clk 0:00:47.2]} 25... gxf6 {[%clk 0:01:49.8]} 26. fxe6 {[%clk
0:00:46.9]} 26... Bxe6 {[%clk 0:01:50.7]} 27. h3 {[%clk 0:00:39.6]} 27... Rxg4
{[%clk 0:01:50.2]} 28. hxg4 {[%clk 0:00:36.3]} 28... Bxg4+ {[%clk 0:01:49.8]}
29. Kd2 {[%clk 0:00:36.2]} 29... Bxh5 {[%clk 0:01:25.6]} 30. Rh1 {[%clk
0:00:36.3]} 30... Bf3 {[%clk 0:01:06.4]} 31. Rxh6 {[%clk 0:00:37.2]} 31... Be4
{[%clk 0:00:55.8]} 32. a4 {[%clk 0:00:32.3]} 32... f5 {[%clk 0:00:53.4]} 33.
Rh7+ {[%clk 0:00:29.1]} 33... Kd6 {[%clk 0:00:52.7]} 34. Rxa7 {[%clk 0:00:29.2]}
34... Rg8 {[%clk 0:00:52.8]} 35. a5 {[%clk 0:00:20]} 35... bxa5 {[%clk
0:00:49.4]} 36. Rxa5 {[%clk 0:00:18.4]} 36... Ke5 {[%clk 0:00:49.2]} 37. Rxc5
{[%clk 0:00:17.2]} 37... Kd4 {[%clk 0:00:46.3]} 38. Rc7 {[%clk 0:00:14.6]} 38...
Rg2+ {[%clk 0:00:45.8]} 39. Kc1 {[%clk 0:00:12.6]} 39... f4 {[%clk 0:00:46.1]}
40. Rb4+ {[%clk 0:00:10.4]} 40... Ke3 {[%clk 0:00:35.5]} 41. Bxe4 {[%clk
0:00:11.3]} 41... Rg1+ {[%clk 0:00:35.9]} 42. Kb2 {[%clk 0:00:10]} 42... dxe4
{[%clk 0:00:36.8]} 43. Re7 {[%clk 0:00:09.3]} 43... Kf2 {[%clk 0:00:34.1]} 44.
Rbxe4 {[%clk 0:00:09.1]} 44... f3 {[%clk 0:00:35]} 45. Rf7 {[%clk 0:00:08.4]}
45... Rg6 {[%clk 0:00:34.1]} 46. Ref4 {[%clk 0:00:07.6]} 46... Rb6+ {[%clk
0:00:34.5]} 47. Kc1 {[%clk 0:00:07.2]} 47... Ke2 {[%clk 0:00:33.6]} 48. Rxf3
{[%clk 0:00:07.2]} 48... Rb8 {[%clk 0:00:32.6]} 49. Rf2+ {[%clk 0:00:07.6]}
49... Ke1 {[%clk 0:00:32.7]} 50. Rf1+ {[%clk 0:00:07.6]} 50... Ke2 {[%clk
0:00:32.8]} 51. R7f2+ {[%clk 0:00:08]} 51... Ke3 {[%clk 0:00:33.1]} 52. c3
{[%clk 0:00:05.5]} 52... Kd3 {[%clk 0:00:32.1]} 53. Rf3+ {[%clk 0:00:05.9]}
53... Ke2 {[%clk 0:00:31.9]} 54. Kc2 {[%clk 0:00:05.8]} 54... Rb7 {[%clk
0:00:23.7]} 55. Rf5 {[%clk 0:00:05.2]} 55... Rb8 {[%clk 0:00:22.9]} 56. R1f2+
{[%clk 0:00:05.6]} 56... Ke1 {[%clk 0:00:23]} 57. Rf1+ {[%clk 0:00:05.8]} 57...
Ke2 {[%clk 0:00:23.2]} 58. R1f2+ {[%clk 0:00:06.2]} 58... Ke1 {[%clk 0:00:24.1]}
59. Rf8 {[%clk 0:00:06.5]} 59... Rb7 {[%clk 0:00:23.9]} 60. R2f7 {[%clk
0:00:06]} 60... Ke2 {[%clk 0:00:24.8]} 61. Rxb7 {[%clk 0:00:05.6]} 1-0

[Event "*** SCC Grand Prix: Titled Tuesday Blitz"]
[Site "Chess.com"]
[Date "2020.10.06"]
[Round "6"]
[White "IngOscarArdila"]
[Black "RamyresCoelho"]
[Result "1-0"]
[WhiteElo "2126"]
[BlackElo "2010"]
[TimeControl "180+1"]
[EndTime "11:09:27 PDT"]
[Termination "IngOscarArdila won by checkmate"]

1. d4 {[%clk 0:03:00.9]} 1... Nf6 {[%clk 0:02:59.8]} 2. c4 {[%clk 0:03:00.2]}
2... g6 {[%clk 0:02:59.8]} 3. Nc3 {[%clk 0:02:59.9]} 3... d5 {[%clk 0:03:00.2]}
4. cxd5 {[%clk 0:02:58.9]} 4... Nxd5 {[%clk 0:03:01.1]} 5. e4 {[%clk 0:02:59.3]}
5... Nxc3 {[%clk 0:03:01.5]} 6. bxc3 {[%clk 0:03:00.2]} 6... Bg7 {[%clk
0:03:01.8]} 7. Bc4 {[%clk 0:03:00.7]} 7... O-O {[%clk 0:03:01.9]} 8. Ne2 {[%clk
0:03:01.2]} 8... c5 {[%clk 0:03:02.2]} 9. Be3 {[%clk 0:03:00.8]} 9... cxd4
{[%clk 0:03:02]} 10. cxd4 {[%clk 0:03:00.8]} 10... Nc6 {[%clk 0:03:00.1]} 11.
O-O {[%clk 0:02:59.6]} 11... Na5 {[%clk 0:02:52.2]} 12. Bd3 {[%clk 0:02:57.1]}
12... b6 {[%clk 0:02:52.5]} 13. Rc1 {[%clk 0:02:55.4]} 13... Bb7 {[%clk
0:02:52.7]} 14. Qd2 {[%clk 0:02:53.3]} 14... Rc8 {[%clk 0:02:52.2]} 15. Rfd1
{[%clk 0:02:42.5]} 15... Qd7 {[%clk 0:02:51]} 16. d5 {[%clk 0:02:36.4]} 16...
Rfd8 {[%clk 0:02:43.5]} 17. Bh6 {[%clk 0:02:34.7]} 17... Bf6 {[%clk 0:02:37.7]}
18. Bg5 {[%clk 0:02:32.5]} 18... Bg7 {[%clk 0:02:37.4]} 19. Qf4 {[%clk
0:02:23.6]} 19... f6 {[%clk 0:02:31.2]} 20. Bh6 {[%clk 0:02:23.2]} 20... Bh8
{[%clk 0:02:31.5]} 21. Nd4 {[%clk 0:02:06.9]} 21... e5 {[%clk 0:02:08.5]} 22.
dxe6 {[%clk 0:01:50.7]} 22... Qxd4 {[%clk 0:02:08]} 23. e7 {[%clk 0:01:50.5]}
23... Re8 {[%clk 0:01:24.6]} 24. Bc4+ {[%clk 0:01:43.5]} 24... Qxc4 {[%clk
0:01:18.6]} 25. Rxc4 {[%clk 0:01:42.9]} 25... Nxc4 {[%clk 0:01:17.8]} 26. Bf8
{[%clk 0:01:31.6]} 26... Ne5 {[%clk 0:01:08.3]} 27. Qe3 {[%clk 0:01:19.6]} 27...
Rxf8 {[%clk 0:01:00.1]} 28. exf8=Q+ {[%clk 0:01:18.9]} 28... Kxf8 {[%clk
0:00:59.7]} 29. Qa3+ {[%clk 0:01:16.5]} 29... Ke8 {[%clk 0:00:53.2]} 30. f4
{[%clk 0:01:15.7]} 30... Nc6 {[%clk 0:00:40.2]} 31. Qd6 {[%clk 0:01:04.8]} 31...
Rd8 {[%clk 0:00:29.8]} 32. Qe6+ {[%clk 0:01:04.6]} 32... Kf8 {[%clk 0:00:23.5]}
33. Rd7 {[%clk 0:00:59.3]} 33... Rxd7 {[%clk 0:00:16.5]} 34. Qxd7 {[%clk
0:00:59.3]} 34... Ne7 {[%clk 0:00:09.2]} 35. Qxb7 {[%clk 0:00:57.8]} 35... Kf7
{[%clk 0:00:10.1]} 36. g4 {[%clk 0:00:52]} 36... Bg7 {[%clk 0:00:11]} 37. Kf2
{[%clk 0:00:51.3]} 37... f5 {[%clk 0:00:09]} 38. gxf5 {[%clk 0:00:46.5]} 38...
gxf5 {[%clk 0:00:09.9]} 39. e5 {[%clk 0:00:46.2]} 39... Ke6 {[%clk 0:00:09.3]}
40. Kf3 {[%clk 0:00:43.3]} 40... Bh6 {[%clk 0:00:08.9]} 41. Qxa7 {[%clk
0:00:42.1]} 41... Nd5 {[%clk 0:00:09]} 42. Qxh7 {[%clk 0:00:39.2]} 42... Bxf4
{[%clk 0:00:08.8]} 43. h4 {[%clk 0:00:27.8]} 43... Bxe5 {[%clk 0:00:08.7]} 44.
h5 {[%clk 0:00:26]} 44... Nf6 {[%clk 0:00:09.2]} 45. Qg6 {[%clk 0:00:22.8]}
45... Ke7 {[%clk 0:00:07.4]} 46. h6 {[%clk 0:00:22.8]} 46... Ne8 {[%clk
0:00:02.2]} 47. Qxf5 {[%clk 0:00:21.2]} 47... Nd6 {[%clk 0:00:03.1]} 48. Qxe5+
{[%clk 0:00:20.6]} 48... Kd7 {[%clk 0:00:03.2]} 49. Qxd6+ {[%clk 0:00:20]} 49...
Kxd6 {[%clk 0:00:03.3]} 50. h7 {[%clk 0:00:13.2]} 50... Kc5 {[%clk 0:00:04.2]}
51. h8=Q {[%clk 0:00:13.2]} 51... Kb4 {[%clk 0:00:05.1]} 52. Qb2+ {[%clk
0:00:13.2]} 52... Ka4 {[%clk 0:00:05.4]} 53. Qxb6 {[%clk 0:00:11.2]} 53... Ka3
{[%clk 0:00:05.7]} 54. Ke2 {[%clk 0:00:11.5]} 54... Kxa2 {[%clk 0:00:06.6]} 55.
Kd2 {[%clk 0:00:12.2]} 55... Ka3 {[%clk 0:00:07.4]} 56. Kc2 {[%clk 0:00:12.5]}
56... Ka4 {[%clk 0:00:08.3]} 57. Kc1 {[%clk 0:00:12.8]} 57... Ka3 {[%clk
0:00:08.3]} 58. Kd1 {[%clk 0:00:13.3]} 58... Ka4 {[%clk 0:00:08.1]} 59. Ke1
{[%clk 0:00:14.2]} 59... Ka3 {[%clk 0:00:09]} 60. Kf1 {[%clk 0:00:15.1]} 60...
Ka4 {[%clk 0:00:09.9]} 61. Kg1 {[%clk 0:00:16]} 61... Ka3 {[%clk 0:00:10.8]} 62.
Kh2 {[%clk 0:00:16.9]} 62... Ka4 {[%clk 0:00:11.7]} 63. Kg3 {[%clk 0:00:17.7]}
63... Ka3 {[%clk 0:00:12.6]} 64. Kf4 {[%clk 0:00:18.5]} 64... Ka4 {[%clk
0:00:13.5]} 65. Ke5 {[%clk 0:00:19.4]} 65... Ka3 {[%clk 0:00:14.3]} 66. Qb7
{[%clk 0:00:20]} 66... Ka2 {[%clk 0:00:15.2]} 67. Kd4 {[%clk 0:00:20.9]} 67...
Ka1 {[%clk 0:00:16]} 68. Kc3 {[%clk 0:00:21.7]} 68... Ka2 {[%clk 0:00:15.9]} 69.
Qb8 {[%clk 0:00:20.8]} 69... Ka1 {[%clk 0:00:15.4]} 70. Qb2# {[%clk 0:00:19.7]}
1-0

[Event "*** SCC Grand Prix: Titled Tuesday Blitz"]
[Site "Chess.com"]
[Date "2020.10.06"]
[Round "6"]
[White "nrvisakh"]
[Black "m_ezat"]
[Result "1-0"]
[WhiteElo "2772"]
[BlackElo "2548"]
[TimeControl "180+1"]
[EndTime "11:09:29 PDT"]
[Termination "nrvisakh won by checkmate"]

1. e4 {[%clk 0:03:00.9]} 1... e5 {[%clk 0:02:51.7]} 2. Nf3 {[%clk 0:03:00.8]}
2... Nc6 {[%clk 0:02:39.6]} 3. Bb5 {[%clk 0:02:59.3]} 3... a6 {[%clk 0:02:36.3]}
4. Ba4 {[%clk 0:02:57.3]} 4... Nf6 {[%clk 0:02:36.1]} 5. O-O {[%clk 0:02:55.3]}
5... Be7 {[%clk 0:02:36.6]} 6. Re1 {[%clk 0:02:54.9]} 6... b5 {[%clk 0:02:37.1]}
7. Bb3 {[%clk 0:02:54.7]} 7... d6 {[%clk 0:02:37.7]} 8. c3 {[%clk 0:02:47.3]}
8... O-O {[%clk 0:02:37]} 9. d4 {[%clk 0:02:46.7]} 9... Bb7 {[%clk 0:02:37.1]}
10. Nbd2 {[%clk 0:02:39.3]} 10... Re8 {[%clk 0:02:30.8]} 11. Ng5 {[%clk
0:02:29.8]} 11... Rf8 {[%clk 0:02:30.2]} 12. Nf1 {[%clk 0:02:21.5]} 12... h6
{[%clk 0:02:03.3]} 13. Nf3 {[%clk 0:02:20.7]} 13... Nh7 {[%clk 0:01:59.1]} 14.
Ne3 {[%clk 0:02:18]} 14... Ng5 {[%clk 0:01:58.6]} 15. Nf5 {[%clk 0:02:15.8]}
15... Na5 {[%clk 0:01:55.9]} 16. Bc2 {[%clk 0:02:10.7]} 16... Bf6 {[%clk
0:01:49.4]} 17. a4 {[%clk 0:02:01.6]} 17... Nc4 {[%clk 0:01:41.9]} 18. b3 {[%clk
0:01:59.7]} 18... Nb6 {[%clk 0:01:41.6]} 19. h4 {[%clk 0:01:37.7]} 19... Ne6
{[%clk 0:01:27.3]} 20. d5 {[%clk 0:01:28.5]} 20... Nf4 {[%clk 0:01:24.1]} 21. g3
{[%clk 0:01:26.4]} 21... Ng6 {[%clk 0:01:21.4]} 22. Nh2 {[%clk 0:01:22.3]} 22...
Ne7 {[%clk 0:01:19.8]} 23. Ne3 {[%clk 0:01:13]} 23... bxa4 {[%clk 0:01:18.2]}
24. bxa4 {[%clk 0:01:11.6]} 24... Bc8 {[%clk 0:01:10.1]} 25. Qf3 {[%clk
0:01:10.1]} 25... c6 {[%clk 0:00:58.1]} 26. Neg4 {[%clk 0:00:58.8]} 26... Nd7
{[%clk 0:00:53.2]} 27. Bxh6 {[%clk 0:00:48.8]} 27... cxd5 {[%clk 0:00:49.8]} 28.
exd5 {[%clk 0:00:46.5]} 28... gxh6 {[%clk 0:00:42.7]} 29. Nxf6+ {[%clk
0:00:42.5]} 29... Nxf6 {[%clk 0:00:43]} 30. Qxf6 {[%clk 0:00:43.4]} 30... Nf5
{[%clk 0:00:43.1]} 31. Ng4 {[%clk 0:00:31.7]} 31... Qxf6 {[%clk 0:00:40.2]} 32.
Nxf6+ {[%clk 0:00:32.6]} 32... Kg7 {[%clk 0:00:40.5]} 33. Nh5+ {[%clk
0:00:30.2]} 33... Kh8 {[%clk 0:00:38.2]} 34. Rab1 {[%clk 0:00:30.5]} 34... Ne7
{[%clk 0:00:35.6]} 35. c4 {[%clk 0:00:28.1]} 35... Ng8 {[%clk 0:00:20.2]} 36.
Rb6 {[%clk 0:00:26.8]} 36... Bg4 {[%clk 0:00:20.1]} 37. Bd1 {[%clk 0:00:25.5]}
37... Bxd1 {[%clk 0:00:16.6]} 38. Rxd1 {[%clk 0:00:25.6]} 38... Rfd8 {[%clk
0:00:17.2]} 39. g4 {[%clk 0:00:20.5]} 39... Rac8 {[%clk 0:00:17.4]} 40. Rc6
{[%clk 0:00:20.1]} 40... Rxc6 {[%clk 0:00:16.8]} 41. dxc6 {[%clk 0:00:20]} 41...
Ne7 {[%clk 0:00:17.3]} 42. c7 {[%clk 0:00:19.5]} 42... Rc8 {[%clk 0:00:17.6]}
43. Rxd6 {[%clk 0:00:19.7]} 43... Rxc7 {[%clk 0:00:18.3]} 44. Rxh6+ {[%clk
0:00:08.9]} 44... Kg8 {[%clk 0:00:18.7]} 45. Nf6+ {[%clk 0:00:09]} 45... Kf8
{[%clk 0:00:18.6]} 46. Rh8+ {[%clk 0:00:08.5]} 46... Kg7 {[%clk 0:00:18.6]} 47.
Ne8+ {[%clk 0:00:08.9]} 47... Kxh8 {[%clk 0:00:19.3]} 48. Nxc7 {[%clk
0:00:09.8]} 48... Nc6 {[%clk 0:00:19.6]} 49. Nxa6 {[%clk 0:00:09.6]} 49... Nd4
{[%clk 0:00:16.7]} 50. Kg2 {[%clk 0:00:09.6]} 50... Kg7 {[%clk 0:00:14.7]} 51.
Nb4 {[%clk 0:00:09.6]} 51... Nb3 {[%clk 0:00:13.5]} 52. Nc6 {[%clk 0:00:09.6]}
52... f6 {[%clk 0:00:11.4]} 53. a5 {[%clk 0:00:09.9]} 53... Nc5 {[%clk
0:00:11.4]} 54. Nb4 {[%clk 0:00:10.1]} 54... Kf7 {[%clk 0:00:06.9]} 55. a6
{[%clk 0:00:10.4]} 55... Nd7 {[%clk 0:00:07.5]} 56. a7 {[%clk 0:00:10.6]} 56...
Nb6 {[%clk 0:00:08.1]} 57. c5 {[%clk 0:00:11]} 57... Na8 {[%clk 0:00:09]} 58. h5
{[%clk 0:00:11]} 58... Kg7 {[%clk 0:00:07.3]} 59. Nd5 {[%clk 0:00:11.1]} 59...
f5 {[%clk 0:00:06.4]} 60. c6 {[%clk 0:00:11]} 60... Kh6 {[%clk 0:00:07]} 61. c7
{[%clk 0:00:11.1]} 61... Nxc7 {[%clk 0:00:07]} 62. Nxc7 {[%clk 0:00:11.2]} 62...
fxg4 {[%clk 0:00:07.9]} 63. a8=Q {[%clk 0:00:11.1]} 63... Kg5 {[%clk 0:00:08.8]}
64. Qg8+ {[%clk 0:00:10.3]} 64... Kh4 {[%clk 0:00:09.7]} 65. Ne6 {[%clk
0:00:09.6]} 65... e4 {[%clk 0:00:10.6]} 66. Qg5# {[%clk 0:00:09.7]} 1-0